Cogmind - Beta 15 @@@ ROGUE MODE // 2025.10.10 @ 19:13:15 Player: DietSnapple Result: Destroyed by C-57 Dissector with Dual-blade Saw Performance ------------- Evolutions (9) 4500 Regions Visited (15) 3000 Robots Destroyed (100) 500 Value Destroyed (2891) 2891 Prototype IDs (43) 860 Alien Tech Used (4) 800 Bonus (4419) 4419 TOTAL SCORE: 16970 Bonus ------- Triggered Max Security 1000 Follower Combat Kills 119 Aligned with FarCom 300 Used Core Reset Matrix 3000 Cogmind --------- Core Integrity 0/1600 Matter 207/300 Energy 99/100 System Corruption 5% Temperature Cool (0) Movement Core (50) Location -1/Access Parts ------- > --- POWER (2) -------- (None) > --- PROPULSION (7) --- (None) > --- UTILITY (14) ----- (None) > --- WEAPON (2) ------- (None) > --- INVENTORY (5) ---- Advanced Point Defense System Peak State ------------ > --- POWER ------------ F-cell Engine Antimatter Reactor > --- PROPULSION ------- Cooled VTOL Module Cooled VTOL Module Cooled VTOL Module Cooled Cesium-ion Thruster Cooled Cesium-ion Thruster Field Propulsion Array > --- UTILITY ---------- Advanced Power Amplifier Advanced Weight Redist. System Triangulator Advanced Signal Interpreter Advanced Transmission Jammer Jamming Amplifier Advanced ECM Suite Improved Utility Shielding Graphene Brace Advanced Point Defense System Hacking Suite Improved Hacking Suite Experimental Hacking Suite Improved System Shield > --- WEAPON ----------- Power Sword > --- INVENTORY -------- Cooled VTOL Module Terrabomb Terrabomb [Rating: 137] Favorites ----------- Power Enhanced Nuclear Core Engine F-cell Engine Power Core Enhanced Nuclear Core Reactor Antimatter Reactor Propulsion Cooled VTOL Module Treads Light Treads Leg Aluminum Leg Wheel Wheel Flight Unit Cooled VTOL Module Utility Hacking Suite Device Transmission Jammer Storage Medium Storage Unit Processor Advanced Signal Interpreter Hackware Hacking Suite Protection Light Armor Plating Artifact Phase Armor Weapon Katana Energy Gun EM Pulse Gun Ballistic Cannon Improved Light Cannon Launcher Grenade Launcher Special Weapon Field Lobotomy Kit Slashing Weapon Katana Piercing Weapon Spear Build | -11 -10 -10 -10 -9 -8 -7 -7 -7 -6 -5 -4 -3 -3 -2 -1 ------- Run | Yrd Mat Min Exi Min Mat Fac Was Fac Fac Fac Fac Res Qua Res Acc Slots Evolved 18 | . . . . . 4 2 . . 2 2 2 2 . 2 2 Power 1 | . . . . . . . . . . . 1 . . . . Propulsion 5 | . . . . . 1 2 . . . . 1 . . 1 . Utility 12 | . . . . . 3 . . . 2 2 . 2 . 1 2 Weapon . | . . . . . . . . . . . . . . . . Parts Attached 134 | 8 1 1 1 4 34 11 1 11 11 6 7 13 4 2 19 Power 23 | 1 . . . . 7 2 1 . 1 . 2 2 1 1 5 Engine 8 | 1 . . . . 4 . . . 1 . 2 . . . . Core 7 | . . . . . 3 2 . . . . . 1 . . 1 Reactor 8 | . . . . . . . 1 . . . . 1 1 1 4 Propulsion 36 | 4 . . . 2 12 3 . 5 2 1 3 . . 1 3 Treads 4 | 2 . . . 2 . . . . . . . . . . . Leg 8 | 2 . . . . 6 . . . . . . . . . . Wheel 3 | . . . . . 3 . . . . . . . . . . Hover . | . . . . . . . . . . . . . . . . Flight 21 | . . . . . 3 3 . 5 2 1 3 . . 1 3 Utility 59 | 1 1 1 1 . 9 4 . 4 7 5 1 11 3 . 11 Device 32 | . 1 1 . . 3 2 . 2 4 2 1 7 1 . 8 Storage 3 | 1 . . 1 . . . . . . . . . . . 1 Processor 5 | . . . . . 1 . . . 1 2 . . . . 1 Hackware 10 | . . . . . . 2 . 2 1 . . 4 . . 1 Protection 8 | . . . . . 5 . . . 1 1 . . 1 . . Artifact 1 | . . . . . . . . . . . . . 1 . . Weapon 16 | 2 . . . 2 6 2 . 2 1 . 1 . . . . Energy Gun 6 | 2 . . . 1 2 . . . . . 1 . . . . Energy Cannon . | . . . . . . . . . . . . . . . . Ballistic Gun . | . . . . . . . . . . . . . . . . Ballistic Cannon 2 | . . . . 1 1 . . . . . . . . . . Launcher 2 | . . . . . 2 . . . . . . . . . . Special Weapon 1 | . . . . . . . . 1 . . . . . . . Impact Weapon . | . . . . . . . . . . . . . . . . Slashing Weapon 4 | . . . . . 1 2 . . 1 . . . . . . Piercing Weapon 1 | . . . . . . . . 1 . . . . . . . Special Melee Weapon . | . . . . . . . . . . . . . . . . Unidentified Prototypes 13 | . . . . . 4 1 . 1 2 . 1 3 1 . . Parts Lost 52 | . 3 . . 1 22 . . 7 . . . . . . 19 Power 10 | . 1 . . . 5 . . . . . . . . . 4 Propulsion 21 | . . . . 1 9 . . 4 . . . . . . 7 Utility 15 | . 1 . . . 3 . . 3 . . . . . . 8 Weapon 6 | . 1 . . . 5 . . . . . . . . . . Highest Loss Streak 11 | . 1 . . 1 10 . . 6 . . . . . . 11 To Critical Strikes . | . . . . . . . . . . . . . . . . Average Backups 5 | 1 5 6 7 7 9 5 5 4 4 4 4 4 3 3 4 Power . | . 1 1 1 1 . . 1 1 1 1 . . . . . Propulsion 1 | . 2 2 2 1 1 1 1 . . . . 1 1 1 . Utility 2 | . . 1 1 2 2 1 2 1 3 3 3 2 1 . 1 Weapon 1 | . 1 2 2 1 2 . . . . . . . . . . Tool/Special . | . . . . . . . . . . . . . . . . Unused Backups 29 | . . . 1 . 11 3 . 2 5 . 1 1 5 . . Power 6 | . . . 1 . 2 . . . 2 . . . 1 . . Propulsion 7 | . . . . . 4 1 . . 1 . . . 1 . . Utility 10 | . . . . . 2 2 . 2 2 . 1 1 . . . Weapon 3 | . . . . . 3 . . . . . . . . . . Tool/Special 3 | . . . . . . . . . . . . . 3 . . Average Slot Usage (%) 82 | . 81 67 57 71 80 88 100 85 88 91 93 96 91 91 82 Engine 2 | . 8 . . . 5 2 . . . 5 5 4 4 4 . Core 1 | . . . . . 1 4 3 4 5 . . 1 . . . Reactor 1 | . . . . . . . 3 2 . . . 2 4 4 7 Treads 2 | . . . . 10 6 . . . . . . . . . . Leg 9 | . 28 28 28 17 11 . . . . . . . . . . Flight 14 | . . . . . . 35 38 32 32 29 31 28 28 26 21 Device 13 | . 3 10 14 14 11 11 7 12 17 11 10 16 15 21 23 Storage 6 | . 14 14 14 14 9 3 . . . . . . . . . Processor 5 | . . . . . 8 7 7 1 5 14 15 14 9 8 7 Hackware 7 | . . . . . . 4 15 16 13 17 15 19 19 17 15 Protection 2 | . . . . . 6 7 7 1 3 4 5 1 3 4 2 Energy Gun 5 | . 26 14 . 7 7 . . . . . 4 1 . . . Ballistic Cannon 1 | . . . . 7 3 . . . . . . . . . . Slashing Weapon 3 | . . . . . 5 7 15 7 . 5 5 4 4 4 3 Peak Build Rating 137 | 6 7 6 6 12 35 43 46 57 67 73 95 118 129 123 137 Average Rating 44 | 3 5 5 5 7 25 35 44 45 56 70 89 107 105 121 122 On Entrance 47 | . 6 4 6 5 12 30 43 46 44 62 73 90 111 110 122 Naked Turns 16 | . . . . . . . . . . . . . . . 16 Heaviest Build 46 | 12 13 8 11 16 41 24 24 24 22 22 28 40 38 41 46 Greatest Support 68 | 40 20 20 20 48 68 26 26 29 35 25 32 55 55 63 63 Greatest Overweight (x) 5 | . . . . . 5 . . 1 . . . . . . 1 Average Overweight (x) . | . . . . . . . . . . . . . . . . Largest Inventory Capacity 15 | 8 8 8 10 10 10 10 5 5 5 5 5 5 5 5 15 Average Capacity 7 | 6 8 8 8 10 10 7 5 5 5 5 5 5 5 5 5 Most Carried 10 | 4 6 8 8 10 10 10 5 5 5 5 5 5 5 4 5 Average Carried 6 | 1 5 7 7 8 9 5 5 3 4 4 4 4 4 3 4 Final Capacity 10 | 8 8 8 10 10 10 5 5 5 5 5 5 5 5 5 5 Final Carried 10 | 4 6 8 8 10 9 5 5 5 5 5 5 5 5 3 1 Class Distribution -------------------- 45% | Mutant 40% | Hacker-Sprinter 4% | Skirmisher 3% | Scavenger-Mutant Dominant Class ---------------- Mutant | -10/Materials Mutant | -10/Mines Mutant | -10/Exiles Mutant | -9/Mines Mutant | -8/Materials Infiltrator-Sprinter | -7/Factory Hacker-Sprinter | -7/Waste Hacker-Sprinter | -7/Factory Hacker-Sprinter | -6/Factory Hacker-Sprinter | -5/Factory Hacker-Sprinter | -4/Factory Hacker-Sprinter | -3/Research Hacker-Sprinter | -3/Quarantine Hacker-Sprinter | -2/Research Hacker-Sprinter | -1/Access Resources | -11 -10 -10 -10 -9 -8 -7 -7 -7 -6 -5 -4 -3 -3 -2 -1 ----------- Run | Yrd Mat Min Exi Min Mat Fac Was Fac Fac Fac Fac Res Qua Res Acc Matter Collected 2470 | 223 65 54 . 218 615 26 . 353 213 29 . 181 190 59 244 Remotely . | . . . . . . . . . . . . . . . . Salvage Created 3910 | . 554 60 . 161 1633 26 . 567 214 262 17 218 21 59 118 Parts 226 | . 38 2 . 9 96 2 . 29 18 10 2 13 1 3 3 Haulers Intercepted 9 | . 1 . . . 1 . . 3 1 2 . . . . 1 Recyclers Shooed 3 | . 1 . . . 1 . . . . . . 1 . . . Parts Field Recycled . | . . . . . . . . . . . . . . . . Retrieved Matter . | . . . . . . . . . . . . . . . . Parts Self-Destructed . | . . . . . . . . . . . . . . . . Prevented . | . . . . . . . . . . . . . . . . Kills | -11 -10 -10 -10 -9 -8 -7 -7 -7 -6 -5 -4 -3 -3 -2 -1 ------- Run | Yrd Mat Min Exi Min Mat Fac Was Fac Fac Fac Fac Res Qua Res Acc Combat Hostiles Destroyed 58 | . 10 1 . 4 31 . . 10 2 . . . . . . Melee 18 | . . . . . 6 . . 10 2 . . . . . . Guns 26 | . 6 1 . 2 17 . . . . . . . . . . Cannons 5 | . . . . 2 3 . . . . . . . . . . AOE 8 | . 3 . . . 5 . . . . . . . . . . Classes Destroyed 15 | . 7 . . 1 5 . . 1 1 . . . . . . Worker 5 | . . . . . 5 . . . . . . . . . . Builder 6 | . . . . . 4 . . . . . 1 1 . . . Tunneler 1 | . 1 . . . . . . . . . . . . . . Hauler 9 | . 1 . . . 1 . . 3 1 2 . . . . 1 Recycler 3 | . 1 . . . 1 . . . . . . 1 . . . Operator 10 | . 2 . . . 2 1 . . 1 1 . 1 1 1 . Watcher 8 | . 2 . . . 3 . . 1 . . . 1 . 1 . Swarmer 10 | . 5 . . . 4 . . . 1 . . . . . . Cutter 3 | . . . . . . . . 3 . . . . . . . Grunt 33 | . 5 1 . 3 19 . . 5 . . . . . . . Brawler 2 | . . . . 1 . . . 1 . . . . . . . Duelist 1 | . . . . . 1 . . . . . . . . . . Sentry 5 | . . . . . 5 . . . . . . . . . . Hunter 3 | . . . . . 2 . . 1 . . . . . . . Programmer 1 | . . . . . . . . . 1 . . . . . . Best Kill Streak 12 | . 4 1 . 2 12 1 . 2 1 1 1 3 1 2 1 Combat Bots Only 9 | . 3 1 . 2 9 . . 2 1 . . . . . . Max Kills in Single Turn 2 | . 2 1 . 1 2 1 . 1 1 1 1 1 1 1 1 Gunslinging . | . . . . . . . . . . . . . . . . Exploded 2 | . 2 . . . 1 . . . . . . . . . . Melee 1 | . . . . . 1 . . 1 1 . . . . . . Uniques/NPCs Destroyed . | . . . . . . . . . . . . . . . . Combat | -11 -10 -10 -10 -9 -8 -7 -7 -7 -6 -5 -4 -3 -3 -2 -1 -------- Run | Yrd Mat Min Exi Min Mat Fac Was Fac Fac Fac Fac Res Qua Res Acc Hostile Shots Fired 707 | . 63 2 . 25 225 . . 54 64 . 1 8 31 4 230 Missed 267 | . 26 1 . 11 47 . . 15 31 . . 2 15 3 116 Hits 440 | . 37 1 . 14 178 . . 39 33 . 1 6 16 1 114 Melee 54 | . . . . . 4 . . 21 . . . . . . 29 Projectile 386 | . 37 1 . 14 174 . . 18 33 . 1 6 16 1 85 AOE 3 | . . . . . . . . . . . . . . . 3 Critical Strikes 50 | . . . . . 11 . . 11 1 . . . . . 27 Actively Blocked 2 | . . . . . . . . . . . . . . . 2 Damage Taken 8091 | . 401 16 . 161 2778 . . 770 415 . 12 231 323 29 2955 Core 2941 | . 115 . . 52 501 . . 251 115 . 12 193 102 . 1600 Absorbed by Shields 9 | . . . . . . . . . 9 . . . . . . Redirected to Shielding 101 | . . . . . . . . . . . . . 13 19 69 Regen/Repaired (Parts) 135 | . . . . . . . . 18 46 . 18 . . . 53 Core Remaining (%) 74 | 100 . . . 33 8 . . 64 86 100 98 . 77 100 . Volleys Fired 174 | . 42 2 . 19 105 . . 5 . . . 1 . . . Largest 2 | . 2 1 . 2 2 . . 1 . . . 1 . . . Hottest 88 | . 80 40 . 73 70 . . . . . . 88 . . . Shots Fired 246 | . 78 3 . 37 122 . . 5 . . . 1 . . . Gun 173 | . 78 3 . 19 72 . . . . . . 1 . . . Cannon 53 | . . . . 18 35 . . . . . . . . . . Launcher 15 | . . . . . 15 . . . . . . . . . . Special 5 | . . . . . . . . 5 . . . . . . . Kinetic 53 | . . . . 18 35 . . . . . . . . . . Thermal 41 | . . . . 19 21 . . . . . . 1 . . . Explosive 15 | . . . . . 15 . . . . . . . . . . Electromagnetic 132 | . 78 3 . . 51 . . . . . . . . . . Robot Hit Streak 22 | . 8 3 . 7 22 . . 1 . . . . . . . Robot Miss Streak 4 | . 4 . . 2 3 . . . . . . . . . . Penetration Max . | . . . . . . . . . . . . . . . . Secondary Targets 1 | . 1 . . . . . . . . . . . . . . Max Gunslinging Chain 1 | . 1 . . . . . . . . . . . . . . Shots Hit Robots 262 | . 49 2 . 24 110 1 . 40 8 8 5 8 1 2 4 Core Hits 141 | . 21 1 . 8 82 1 . 15 4 3 . 3 . 1 2 Critical Kills . | . . . . . . . . . . . . . . . . Critical Parts Destroyed . | . . . . . . . . . . . . . . . . Critical Strikes 10 | . . . . . 5 . . 4 . . . . . . 1 Burn 1 | . . . . . 1 . . . . . . . . . . Blast 1 | . . . . . 1 . . . . . . . . . . Sever 8 | . . . . . 3 . . 4 . . . . . . 1 Melee Attacks 243 | . . . . . 30 4 . 61 41 22 18 27 10 3 27 Impact . | . . . . . . . . . . . . . . . . Slashing 207 | . . . . . 30 4 . 60 6 22 18 27 10 3 27 Piercing 36 | . . . . . . . . 1 35 . . . . . . Sneak Attacks 25 | . . . . . 7 . . 5 3 2 1 4 1 1 1 Combat Hostiles 4 | . . . . . 1 . . 2 1 . . . . . . Follow-up Attacks . | . . . . . . . . . . . . . . . . Damage Inflicted 8966 | . 1086 28 . 374 3775 36 . 1421 386 469 250 596 143 178 224 Guns 2175 | . 693 25 . 144 1313 . . . . . . . . . . Cannons 798 | . . . . 218 580 . . . . . . . . . . Explosions 1272 | . 372 . . . 900 . . . . . . . . . . Melee 4664 | . . . . . 973 36 . 1421 386 469 250 596 143 178 212 Ramming 57 | . 21 3 . 12 9 . . . . . . . . . 12 Kinetic 798 | . . . . 218 580 . . . . . . . . . . Thermal 882 | . 372 . . 144 366 . . . . . . . . . . Explosive 845 | . . . . . 845 . . . . . . . . . . Electromagnetic 1720 | . 693 25 . . 1002 . . . . . . . . . . Impact . | . . . . . . . . . . . . . . . . Slashing 4372 | . . . . . 973 36 . 1421 94 469 250 596 143 178 212 Piercing 292 | . . . . . . . . . 292 . . . . . . Highest Corruption 16 | . 5 5 5 5 . 2 2 16 1 . . . . . 5 Average Corruption 6 | . 4 5 5 5 . 2 2 12 1 . . . . . 1 Corruption Purged . | . . . . . . . . . . . . . . . . Corruption Blocked . | . . . . . . . . . . . . . . . . Effects 113 | . 10 15 9 33 . 3 1 41 1 . . . . . . Message Errors 22 | . 3 4 . 5 . . 1 9 . . . . . . . Matter Fused 34 | . . 6 4 10 . . . 13 1 . . . . . . Heat Flow Errors 13 | . 2 . 2 5 . . . 4 . . . . . . . Energy Discharges 19 | . 2 1 2 6 . 1 . 7 . . . . . . . Parts Rejected 1 | . . . . . . 1 . . . . . . . . . Data Loss (minor) 15 | . 2 2 1 4 . 1 . 5 . . . . . . . Data Loss (major) 1 | . . . . . . . . 1 . . . . . . . Misfires 2 | . 1 1 . . . . . . . . . . . . . Alerts 4 | . . 1 . 2 . . . 1 . . . . . . . Misdirections 1 | . . . . . . . . 1 . . . . . . . Weapon Failures 1 | . . . . 1 . . . . . . . . . . . Overload Shots . | . . . . . . . . . . . . . . . . Overflow Damage 690 | . 5 . . . 105 . . 65 13 64 74 180 108 76 . Projectiles . | . . . . . . . . . . . . . . . . Explosions 22 | . 5 . . . 17 . . . . . . . . . . Melee 668 | . . . . . 88 . . 65 13 64 74 180 108 76 . Knockbacks 6 | . . . . 1 5 . . . . . . . . . . Impact 1 | . . . . 1 . . . . . . . . . . . Kinetic 5 | . . . . . 5 . . . . . . . . . . Secondary . | . . . . . . . . . . . . . . . . Self-Inflicted Damage 83 | . 56 . . . 21 . . . . . . . . . 6 Shots 4 | . 3 . . . 1 . . . . . . . . . . Rammed 3 | . . . . 1 . . . . . . . . . . 2 Targets Rammed 12 | . 3 1 . 3 3 . . . . . . . . . 2 Kicked 9 | . 3 1 . 2 3 . . . . . . . . . . Crushed . | . . . . . . . . . . . . . . . . Highest Temperature 264 | . 252 . 245 261 264 42 83 252 194 . 6 246 189 6 242 Average Temperature 66 | . 68 . 106 69 87 14 32 45 82 . 3 108 90 6 82 Received Heat Transfer 2046 | . 93 9 . 87 1392 . . 198 75 . . 18 30 . 144 Effects 1 | . . . . . . . . . . . . 1 . . . Energy Bleed 1 | . . . . . . . . . . . . 1 . . . Siege Activations . | . . . . . . . . . . . . . . . . Martial Activations . | . . . . . . . . . . . . . . . . Shielding Activations . | . . . . . . . . . . . . . . . . Robots Disrupted . | . . . . . . . . . . . . . . . . Combat Hostiles . | . . . . . . . . . . . . . . . . Robots Corrupted 1 | . 1 . . . . . . . . . . . . . . Combat Hostiles 1 | . 1 . . . . . . . . . . . . . . Parts Fried 4 | . 1 . . . 3 . . . . . . . . . . Impact Corruptions . | . . . . . . . . . . . . . . . . Robots Melted . | . . . . . . . . . . . . . . . . Combat Hostiles . | . . . . . . . . . . . . . . . . Parts Melted 3 | . . . . . 2 . . 1 . . . . . . . Heat Transferred 1465 | . 400 . . 325 740 . . . . . . . . . . Parts Sabotaged . | . . . . . . . . . . . . . . . . Parts Stolen . | . . . . . . . . . . . . . . . . Parts Stripped . | . . . . . . . . . . . . . . . . Power Chain Reactions 7 | . 6 . . . 1 . . . . . . . . . . Alert | -11 -10 -10 -10 -9 -8 -7 -7 -7 -6 -5 -4 -3 -3 -2 -1 ------- Run | Yrd Mat Min Exi Min Mat Fac Was Fac Fac Fac Fac Res Qua Res Acc Maximum Alert Level 5 | . . . . . 1 . . . 1 . . . 5 4 2 Low Security (%) 74 | 100 100 100 . 100 37 100 100 100 99 100 100 100 . . 1 Level 1 17 | . . . . . 62 . . . . . . . . . 40 Level 2 5 | . . . . . . . . . . . . . . . 58 Level 3 . | . . . . . . . . . . . . . . . . Level 4 1 | . . . . . . . . . . . . . . 100 . Level 5 . | . . . . . . . . . . . . . . . . High Security . | . . . . . . . . . . . . . . . . Max Security 1 | . . . . . . . . . . . . . 99 . . Peak Influence 1744 | . 122 30 . 45 319 123 3 81 218 106 32 42 1744 1153 691 Initial 1100 | . . 4 . . . 123 3 . 7 106 . 11 9 1100 691 Average 139 | . 55 1 . 6 189 66 1 23 32 40 5 10 1653 1119 441 Influence Increases 3438 | . 385 30 . 101 1201 8 . 384 438 63 90 172 174 103 289 Destroy 0b10 Robot/C 1260 | . 200 20 . 80 700 . . 220 40 . . . . . . Destroy 0b10 Robot/NC 205 | . 35 . . . 80 5 . 20 5 15 5 20 5 10 5 Destroy Leader 312 | . 56 10 . 20 168 . . 38 10 4 . 2 . 2 2 Allied During Kill 16 | . . . . . 13 . . 3 . . . . . . . Successful Hack 285 | . 11 . . . 5 . . 39 95 20 3 45 . 16 51 Disable Machine 180 | . 60 . . . 45 . . . 15 . 15 . 45 . . Destroy Structure 250 | . 23 . . 1 70 3 . 4 18 24 22 30 4 . 51 Partial Spotted 300 | . . . . . . . . 15 30 . 30 75 60 45 45 Lose Combat Pursuer 630 | . . . . . 120 . . 45 225 . 15 . 60 30 135 Influence Decreases 5002 | . 372 43 . 101 930 268 11 367 237 281 68 177 8 827 1312 Entered New Map 1545 | . . 9 . . . 148 8 . 10 112 . 11 8 777 462 Time Decay 2437 | . 342 34 . 91 500 120 3 317 227 169 68 166 . 50 350 Lost Part 480 | . 30 . . 10 220 . . 30 . . . . . . 190 Lost Ally 240 | . . . . . 60 . . 20 . . . . . . 160 Purge Threat 300 | . . . . . 150 . . . . . . . . . 150 Squads Dispatched 50 | . 2 . . 1 13 1 . 8 5 3 1 4 6 1 5 Investigation 6 | . . . . 1 1 . . 1 2 1 . . . . . Extermination 11 | . . . . . . 1 . 1 3 1 1 1 . . 3 Reinforcement 20 | . 2 . . . 5 . . 6 . 1 . 3 . 1 2 Assault 6 | . . . . . . . . . . . . . 6 . . Garrison 7 | . . . . . 7 . . . . . . . . . . Intercept . | . . . . . . . . . . . . . . . . Searches Triggered . | . . . . . . . . . . . . . . . . Construction Impeded 2 | . . . . . 2 . . . . . . . . . . Haulers Reinforced 3 | . . . . . . . . 2 . . . . . . 1 Active Scanning Responses . | . . . . . . . . . . . . . . . . Cargo Convoy Interrupts . | . . . . . . . . . . . . . . . . Stealth | -11 -10 -10 -10 -9 -8 -7 -7 -7 -6 -5 -4 -3 -3 -2 -1 --------- Run | Yrd Mat Min Exi Min Mat Fac Was Fac Fac Fac Fac Res Qua Res Acc Distress Signals 16 | . 2 . . . 8 . . 1 . . . . . 1 4 Communications Jammed 11 | . . . . . . . . 3 . . 2 1 . . 5 Distress Signals 7 | . . . . . . . . 1 . . 2 1 . . 3 Times Spotted 267 | . 18 1 . 6 57 3 . 21 24 1 7 15 13 7 94 Peak Tracking Total 16 | . 5 . . 2 5 1 . 5 6 1 4 5 8 4 16 Tactical Retreats 46 | . . . . . 5 1 . 1 8 . 1 3 2 3 22 Traps | -11 -10 -10 -10 -9 -8 -7 -7 -7 -6 -5 -4 -3 -3 -2 -1 ------- Run | Yrd Mat Min Exi Min Mat Fac Was Fac Fac Fac Fac Res Qua Res Acc Traps Triggered 21 | . 3 . . . 1 3 . 4 . 4 . 5 1 . . Indirectly . | . . . . . . . . . . . . . . . . Trap Hack Attempts . | . . . . . . . . . . . . . . . . Triggered . | . . . . . . . . . . . . . . . . Disarmed . | . . . . . . . . . . . . . . . . Reprogrammed . | . . . . . . . . . . . . . . . . Reused . | . . . . . . . . . . . . . . . . Traps Extracted . | . . . . . . . . . . . . . . . . Installed . | . . . . . . . . . . . . . . . . Triggered . | . . . . . . . . . . . . . . . . Most Traps Carried 1 | . . 1 1 1 1 . . . . . . . . . . Machines | -11 -10 -10 -10 -9 -8 -7 -7 -7 -6 -5 -4 -3 -3 -2 -1 ---------- Run | Yrd Mat Min Exi Min Mat Fac Was Fac Fac Fac Fac Res Qua Res Acc Machines Disabled 12 | . 4 . . . 3 . . . 1 . 1 . 3 . . Max in Single Turn 2 | . 1 . . . 2 . . . 1 . 1 . 1 . . Garrison Access 7 | . . . . . . . . 2 . . . 4 . . 1 Machines Repaired . | . . . . . . . . . . . . . . . . Machines Dismantled . | . . . . . . . . . . . . . . . . Machines Sabotaged . | . . . . . . . . . . . . . . . . Overloaded Fab Kills . | . . . . . . . . . . . . . . . . Hacking | -11 -10 -10 -10 -9 -8 -7 -7 -7 -6 -5 -4 -3 -3 -2 -1 --------- Run | Yrd Mat Min Exi Min Mat Fac Was Fac Fac Fac Fac Res Qua Res Acc Machines Accessed 57 | . 1 . 1 1 3 2 . 17 9 5 2 7 . 3 6 Terminals 28 | . 1 . . . 2 1 . 8 3 3 1 3 . 2 4 Fabricators 4 | . . . . . . . . 1 2 1 . . . . . Repair Stations 4 | . . . . . . . . 1 1 . 1 . . . 1 Recycling Units 7 | . . . . . 1 1 . 2 3 . . . . . . Scanalyzers 3 | . . . . . . . . 2 . 1 . . . . . Garrison Access 9 | . . . . . . . . 3 . . . 4 . 1 1 Total Hacks 135 | . 3 . 1 1 6 3 . 34 29 15 5 14 . 10 14 Successful 80 | . 2 . 1 1 5 1 . 20 20 10 2 8 . 2 8 Failed 55 | . 1 . . . 1 2 . 14 9 5 3 6 . 8 6 Catastrophic 13 | . . . . . . 1 . 8 2 . . 1 . . 1 Database Lockouts . | . . . . . . . . . . . . . . . . Manual 44 | . 3 . 1 . 5 2 . 10 5 7 1 1 . 8 1 Terminals 71 | . 3 . . . 5 2 . 14 11 9 2 7 . 8 10 Fabricators 13 | . . . . . . . . 2 7 4 . . . . . Repair Stations 12 | . . . . . . . . 4 2 . 3 . . . 3 Recycling Units 14 | . . . . . 1 1 . 3 9 . . . . . . Scanalyzers 9 | . . . . . . . . 7 . 2 . . . . . Garrison Access 14 | . . . . . . . . 4 . . . 7 . 2 1 Terminal Hacks 26 | . . . 1 1 3 . . 4 4 2 . 4 . 2 5 Part Schematic 1 | . . . . . . . . . 1 . . . . . . Prototype ID Bank 4 | . . . . . . . . 2 1 1 . . . . . Open Door 1 | . . . . 1 . . . . . . . . . . . Level Access Points 2 | . . . . . . . . . . . . 1 . 1 . Branch Access Points 1 | . . . . . . . . . . . . 1 . . . Scanalyzer Index 1 | . . . . . . . . 1 . . . . . . . Alert Level 2 | . . . . . 1 . . . . . . . . . 1 Unreport Threat 2 | . . . . . 1 . . . . . . . . . 1 Locate Traps 1 | . . . . . . . . . . . . 1 . . . Assault Status 1 | . . . . . . . . . . . . . . . 1 Recall Reinforcements 1 | . . . . . . . . . . . . . . 1 . Hauler Manifests 3 | . . . . . 1 . . 1 1 . . . . . . Registered Components 1 | . . . . . . . . . 1 . . . . . . Registered Prototypes 2 | . . . . . . . . . . 1 . . . . 1 Zone Layout 2 | . . . . . . . . . . . . 1 . . 1 Proto ID Catalog 1 | . . . 1 . . . . . . . . . . . . Fabricator Hacks 8 | . . . . . . . . 2 4 2 . . . . . Load Schematic 4 | . . . . . . . . 1 2 1 . . . . . Build 4 | . . . . . . . . 1 2 1 . . . . . Repair Station Hacks 10 | . . . . . . . . 4 2 . 2 . . . 2 Scan Component 5 | . . . . . . . . 2 1 . 1 . . . 1 Repair 5 | . . . . . . . . 2 1 . 1 . . . 1 Recycling Unit Hacks 11 | . . . . . 1 1 . 2 7 . . . . . . Process 1 | . . . . . . . . . 1 . . . . . . Report Inventory 7 | . . . . . 1 1 . 2 3 . . . . . . Retrieve Matter 2 | . . . . . . . . . 2 . . . . . . Retrieve Components 1 | . . . . . . . . . 1 . . . . . . Scanalyzer 5 | . . . . . . . . 3 . 2 . . . . . Insert Component 3 | . . . . . . . . 2 . 1 . . . . . Analyze 2 | . . . . . . . . 1 . 1 . . . . . Garrison Access Hacks 7 | . . . . . . . . 2 . . . 4 . . 1 Seal Access 7 | . . . . . . . . 2 . . . 4 . . 1 Unauthorized Hacks 13 | . 2 . . . 1 . . 3 3 4 . . . . . Terminals 13 | . 2 . . . 1 . . 3 3 4 . . . . . Assimilate 1 | . . . . . . . . . 1 . . . . . . Botnet 8 | . 1 . . . 1 . . 2 2 2 . . . . . Operators 1 | . 1 . . . . . . . . . . . . . . Skim 3 | . . . . . . . . 1 . 2 . . . . . Fabricators . | . . . . . . . . . . . . . . . . Repair Stations . | . . . . . . . . . . . . . . . . Recycling Units . | . . . . . . . . . . . . . . . . Scanalyzers . | . . . . . . . . . . . . . . . . Garrison Access . | . . . . . . . . . . . . . . . . Data Cores Recovered 3 | . . . . . . 1 . . . . . 1 . 1 . Used 1 | . . . . . . . . . . . . . . 1 . Hacking Detections 43 | . 1 . . . 2 2 . 13 6 5 1 5 . 3 5 Full Trace Events 4 | . . . . . . . . 1 2 1 . . . . . Feedback Events . | . . . . . . . . . . . . . . . . Feedback Blocked . | . . . . . . . . . . . . . . . . Robot Schematics Acquired . | . . . . . . . . . . . . . . . . Robots Built . | . . . . . . . . . . . . . . . . Authchips . | . . . . . . . . . . . . . . . . Time . | . . . . . . . . . . . . . . . . Total Robot Build Rating . | . . . . . . . . . . . . . . . . Part Schematics Acquired 3 | . . . . . . . . 1 1 1 . . . . . Parts Built 4 | . . . . . . . . 1 2 1 . . . . . Authchips . | . . . . . . . . . . . . . . . . Time 335 | . . . . . . . . 67 201 67 . . . . . Total Part Build Rating 16 | . . . . . . . . 4 8 4 . . . . . Parts Repaired 5 | . . . . . . . . 2 1 . 1 . . . 1 Time 260 | . . . . . . . . 132 35 . 70 . . . 23 Parts Recycled . | . . . . . . . . . . . . . . . . Recycled Matter 6 | . . . . . . . . . 6 . . . . . . Retrieved Matter 6 | . . . . . . . . . 6 . . . . . . Retrieved Components 2 | . . . . . . . . . 2 . . . . . . Parts Scanalyzed 2 | . . . . . . . . 1 . 1 . . . . . Part Schematics Acquired 2 | . . . . . . . . 1 . 1 . . . . . Parts Damaged 1 | . . . . . . . . 1 . . . . . . . Bothacking | -11 -10 -10 -10 -9 -8 -7 -7 -7 -6 -5 -4 -3 -3 -2 -1 ------------ Run | Yrd Mat Min Exi Min Mat Fac Was Fac Fac Fac Fac Res Qua Res Acc Used RIF Installer . | . . . . . . . . . . . . . . . . Robots Hacked . | . . . . . . . . . . . . . . . . Non-combat . | . . . . . . . . . . . . . . . . Combat . | . . . . . . . . . . . . . . . . Robot Hacks Applied . | . . . . . . . . . . . . . . . . Relay Couplers Released . | . . . . . . . . . . . . . . . . Fabnet Peak Effective % . | . . . . . . . . . . . . . . . . Robots Rewired . | . . . . . . . . . . . . . . . . Allies Hacked . | . . . . . . . . . . . . . . . . Hacks Repelled . | . . . . . . . . . . . . . . . . Allies | -11 -10 -10 -10 -9 -8 -7 -7 -7 -6 -5 -4 -3 -3 -2 -1 -------- Run | Yrd Mat Min Exi Min Mat Fac Was Fac Fac Fac Fac Res Qua Res Acc Total Allies 13 | . . . . 3 . . . 1 1 . . . . . 8 Largest Group 3 | . . . . 3 3 . . 1 . . . . . . 1 Highest-Rated Group 40 | . . . . 40 40 . . 32 . . . . . . 13 Highest-Rated Ally 32 | . . . . 16 16 . . 32 . . . . . . 13 Total Orders . | . . . . . . . . . . . . . . . . Ally Attacks 27 | . . . . . 15 . . 7 . . . . . . 5 Total Damage 532 | . . . . . 166 . . 317 . . . . . . 49 Kills 5 | . . . . . 4 . . 1 . . . . . . . Allies Corrupted . | . . . . . . . . . . . . . . . . Allies Melted . | . . . . . . . . . . . . . . . . Field Lobotomies 1 | . . . . . . . . 1 . . . . . . . Intel | -11 -10 -10 -10 -9 -8 -7 -7 -7 -6 -5 -4 -3 -3 -2 -1 ------- Run | Yrd Mat Min Exi Min Mat Fac Was Fac Fac Fac Fac Res Qua Res Acc Active Infowar (turns) 6814 | . 218 447 322 996 453 236 52 1043 848 434 284 520 129 108 724 Optics 1177 | . . . . . . . . . . 344 284 520 29 . . Sensors 428 | . . . . . 428 . . . . . . . . . . Traps 1530 | . . . . . . . . 758 772 . . . . . . Seismic 2081 | . 218 447 322 996 98 . . . . . . . . . . T.N.C. 2 | . . . . . . . . . . . . . . . 2 Triangulation 514 | . . . . . . . . . . . . 45 . 108 361 Jamming 3599 | . . . . . . 66 52 1043 610 434 284 435 129 108 438 ECM 1069 | . . . . . . 202 . 1 18 . . 96 7 21 724 Robot Analysis Total . | . . . . . . . . . . . . . . . . Derelict Logs Recovered 2 | . . 1 . 1 . . . . . . . . . . . Drone Launches . | . . . . . . . . . . . . . . . . Drone Recoveries . | . . . . . . . . . . . . . . . . Exploration | -11 -10 -10 -10 -9 -8 -7 -7 -7 -6 -5 -4 -3 -3 -2 -1 ------------- Run | Yrd Mat Min Exi Min Mat Fac Was Fac Fac Fac Fac Res Qua Res Acc Turns Passed 9390 | 172 773 582 322 996 1982 249 52 1114 848 434 284 520 166 108 788 Spaces Moved 13213 | 110 528 478 266 671 901 674 176 1840 1684 966 642 1441 615 391 1830 Core 83 | 9 . . . . 22 . . . . . . . . . 52 Treads 496 | 76 . . . 217 203 . . . . . . . . . . Legs 2257 | 25 528 478 266 454 506 . . . . . . . . . . Wheels 170 | . . . . . 170 . . . . . . . . . . Hover . | . . . . . . . . . . . . . . . . Flight 10207 | . . . . . . 674 176 1840 1684 966 642 1441 615 391 1778 Fastest Speed 5 | 50 120 120 120 120 80 26 27 14 11 23 20 5 5 5 5 Average Speed 47 | 141 120 120 120 132 152 26 27 27 23 23 20 19 19 19 23 Slowest Speed 300 | 160 120 120 120 160 300 27 27 106 24 26 20 20 23 20 99 Overloaded Moves 257 | . . . . . . . . 10 15 . . 46 36 7 143 Propulsion Burnouts . | . . . . . . . . . . . . . . . . Robots Hopped 86 | . . . . . . 12 1 19 18 5 3 5 1 1 21 Potential Cave-ins 22 | . . . . . . . . . . . . . . . 22 Cave-ins Triggered . | . . . . . . . . . . . . . . . . Exploration Rate (%) 43 | 6 72 69 59 81 49 23 76 38 36 22 12 34 65 13 46 Regions Visited 15 Branch Regions 4 Pre-discovered Areas 1 | . . . . 1 . . . . . . . . . . . Known Exits Taken 8 | . . . . . 1 . . 1 1 1 1 1 1 1 . Unknown Exits Taken 5 | 1 1 1 1 1 . . . . . . . . . . . Scrap Searched 3 | . . 1 . 2 . . . . . . . . . . . Spaces Dug 83 | . . . . . . 3 . 4 18 12 11 15 2 . 18 Terrain Destroyed 200 | . 21 . . 1 95 3 . 4 18 12 11 15 2 . 18 Melee 83 | . . . . . . 3 . 4 18 12 11 15 2 . 18 Projectile 5 | . . . . 1 4 . . . . . . . . . . AOE 112 | . 21 . . . 91 . . . . . . . . . . Terrain Rammed . | . . . . . . . . . . . . . . . . Walls Destroyed . | . . . . . . . . . . . . . . . . Machines Disabled . | . . . . . . . . . . . . . . . . Actions | -11 -10 -10 -10 -9 -8 -7 -7 -7 -6 -5 -4 -3 -3 -2 -1 --------- Run | Yrd Mat Min Exi Min Mat Fac Was Fac Fac Fac Fac Res Qua Res Acc Total 15571 | 123 589 483 270 735 1342 730 179 2322 2065 1141 768 1634 647 415 2128 Wait 1487 | . 14 . . 31 228 23 2 330 319 83 90 105 . 19 243 Move 13040 | 109 527 477 265 670 900 654 173 1804 1649 955 635 1430 612 388 1792 Hop 73 | . . . . . . 8 1 16 16 5 3 5 1 1 17 Pick Up 83 | 6 2 2 1 4 19 4 1 11 8 5 4 8 3 . 5 Fast Attach 90 | 4 1 1 . 1 23 4 . 13 8 3 5 6 8 . 13 Attach 52 | 2 . . . 2 9 6 . 7 . 3 2 8 2 2 9 Detach 32 | . . . . . 4 4 . 4 . 1 1 6 3 1 8 Swap 51 | 2 . . 1 2 4 5 1 7 9 3 2 8 1 1 5 Drop 98 | . . . 3 1 17 10 1 10 15 7 8 12 7 . 7 Fire 174 | . 42 2 . 19 105 . . 5 . . . 1 . . . Melee 243 | . . . . . 30 4 . 61 41 22 18 27 10 3 27 Ram 2 | . . . . . . . . . . . . . . . 2 Kick 9 | . 3 1 . 2 3 . . . . . . . . . . Crush 1 | . . . . 1 . . . . . . . . . . . Escape Stasis 134 | . . . . . . 8 . 54 . 54 . 18 . . . Rewire 2 | . . . . 2 . . . . . . . . . . . Trap . | . . . . . . . . . . . . . . . . Miscellaneous . | . . . . . . . . . . . . . . . . Route ------- -11/Scrapyard -10/Materials (discovered 2 exits: [*Mat] / [*Min]) -10/Mines (discovered 3 exits: [*Mat x2] / *Exi) -10/Exiles (discovered 2 exits: *Min x2) -9/Mines -8/Materials -7/Factory (discovered 2 exits: *Fac / *Low) -7/Waste -7/Factory (discovered 3 exits: *Fac x2 / [*Sto]) -6/Factory (discovered 3 exits: *Fac x2 / *Ext) -5/Factory (discovered 3 exits: *Fac / *Upp x2) -4/Factory -3/Research (discovered 5 exits: *Res x3 / *Qua x2) -3/Quarantine -2/Research (discovered 4 exits: *Acc x3 / *Tes) -1/Access History --------- Turn | Location | Event 5 | -11/Scrapyard | Discovered new exit (range 15) 173 | -11/Scrapyard | Entered Materials 316 | -10/Materials | Build established: Mutant 563 | -10/Materials | Discovered new exit (range 10) 658 | -10/Materials | Discovered new exit (range 7) 946 | -10/Materials | Entered Mines 980 | -10/Mines | Discovered new exit (range 11) 994 | -10/Mines | Met a Derelict bent on vengeance 1122 | -10/Mines | Learned 2 Materials zone layouts 1207 | -10/Mines | Discovered new exit (range 12) 1282 | -10/Mines | Found a hidden stash of uninstalled traps 1480 | -10/Mines | Deemed a non-threat by the Exiles lab entrance 1481 | -10/Mines | Discovered new exit (range 5) 1528 | -10/Mines | Entered Exiles 1547 | -10/Exiles | Discovered new exit (range 15) 1563 | -10/Exiles | Met 8R-AWN 1582 | -10/Exiles | Met EX-HEX 1623 | -10/Exiles | Met EX-BIN 1655 | -10/Exiles | Aligned with FarCom system 1656 | -10/Exiles | Given EX-Vault access code 1692 | -10/Exiles | Opened EX-Vault 1709 | -10/Exiles | Found Field Lobotomy Kit 1733 | -10/Exiles | Warned to stay clear of 0b10 Research branches 1769 | -10/Exiles | Met EX-DEC 1834 | -10/Exiles | Discovered new exit (range 14) 1850 | -10/Exiles | Left Exiles lab with Field Lobotomy Kit 1850 | -10/Exiles | Entered Mines 1879 | -9/Mines | Learned location of Zion (-7) 2408 | -9/Mines | Core integrity fell below 50% 2701 | -9/Mines | Met a Derelict shopkeep closing up shop 2790 | -9/Mines | Discovered new exit (range 7) 2817 | -9/Mines | Assisted by bots powering up and referring to "LRC-V3" 2846 | -9/Mines | Entered Materials 2846 | -8/Materials | Accompanied by 3 allies 2846 | -8/Materials | Evolved 4 slots: Propulsion x1, Utility x3 3160 | -8/Materials | Build established: Skirmisher 3161 | -8/Materials | Garrison activated, responded to threat 3179 | -8/Materials | Lost 3 allies 3279 | -8/Materials | Garrison activated, responded to threat 3378 | -8/Materials | Destroyed 9 combat bots 3383 | -8/Materials | Lost 10 parts (1p3n2u4w) 3406 | -8/Materials | Core integrity fell below 50% 3737 | -8/Materials | Lost 4 parts (1p2n1w) 3983 | -8/Materials | Garrison activated, responded to threat 4176 | -8/Materials | Build established: Mutant 4285 | -8/Materials | Core integrity fell below 20% 4430 | -8/Materials | Discovered new exit (range 9) 4464 | -8/Materials | Identified exit to Factory 4828 | -8/Materials | Entered Factory 4828 | -7/Factory | Evolved 2 slots: Propulsion x2 4903 | -7/Factory | Discovered new exit (range 7) 4905 | -7/Factory | Identified exit to Lower Caves 5059 | -7/Factory | Discovered new exit (range 15) 5064 | -7/Factory | Identified exit to Factory 5077 | -7/Factory | Sucked down chute 5077 | -7/Factory | Entered Waste 5077 | -7/Waste | The area was eerily silent 5103 | -7/Waste | Discovered new exit (range 12) 5128 | -7/Waste | Identified exit to Factory 5129 | -7/Waste | Entered Factory 5359 | -7/Factory | Build established: Hacker-Sprinter 5394 | -7/Factory | Repaired Transmission Jammer 5424 | -7/Factory | System corruption reached 10% 5473 | -7/Factory | Lost 6 parts (3n3u) 5597 | -7/Factory | Repaired Broken Cld. VTOL Module 5754 | -7/Factory | Assimilated Y-54 Guardian with FLK Orb 5814 | -7/Factory | Fabricated Cld. VTOL Module (x1) 5924 | -7/Factory | Discovered exit to Factory (range 6) 6166 | -7/Factory | Discovered new exit (range 9) 6241 | -7/Factory | Discovered exit to Factory (range 12) 6243 | -7/Factory | Entered another Factory area 6243 | -6/Factory | Evolved 2 slots: Utility x2 6351 | -6/Factory | Fabricated Cld. VTOL Module (x1) 6501 | -6/Factory | Fabricated Cld. VTOL Module (x1) 6816 | -6/Factory | Repaired Cld. VTOL Module 6958 | -6/Factory | Discovered new exit (range 16) 6962 | -6/Factory | Identified exit to Factory 7015 | -6/Factory | Discovered new exit (range 16) 7020 | -6/Factory | Identified exit to Extension 7030 | -6/Factory | Discovered exit to Factory (range 4) 7091 | -6/Factory | Entered another Factory area 7091 | -5/Factory | Evolved 2 slots: Utility x2 7177 | -5/Factory | Fabricated Cld. VTOL Module (x1) 7228 | -5/Factory | Discovered new exit (range 6) 7276 | -5/Factory | Identified exit to Upper Caves 7431 | -5/Factory | Discovered exit to Upper Caves (range 6) 7490 | -5/Factory | Discovered new exit (range 5) 7493 | -5/Factory | Identified exit to Factory 7496 | -5/Factory | Spotted B-75 Beast 7525 | -5/Factory | Entered another Factory area 7525 | -4/Factory | Evolved 2 slots: Power x1, Propulsion x1 7692 | -4/Factory | Discovered new exit (range 7) 7696 | -4/Factory | Identified exit to Research 7786 | -4/Factory | Repaired Cld. VTOL Module? 7809 | -4/Factory | Entered Research 7809 | -3/Research | Evolved 2 slots: Utility x2 7871 | -3/Research | Spotted B-86 Titan 7982 | -3/Research | Identified exit to Quarantine 8069 | -3/Research | Found Prototype Hackware 8069 | -3/Research | Identified Exp. Hacking Suite 8170 | -3/Research | Identified exit to Research 8232 | -3/Research | Spotted B-86 Titan 8328 | -3/Research | Spotted B-90 Cyclops 8329 | -3/Research | Entered Quarantine 8330 | -3/Quarantine | Maximum security lockdown engaged 8335 | -3/Quarantine | Found Alien Artifact 8335 | -3/Quarantine | Identified Core Reset Matrix 8335 | -3/Quarantine | Used Core Reset Matrix 8339 | -3/Quarantine | Detected hypermatrix surge 8339 | -3/Quarantine | Sensed 15 artifacts in vicinity 8359 | -3/Quarantine | Found Phase Armor 8382 | -3/Quarantine | Found Subatomic Replicator 8454 | -3/Quarantine | Found Terrabomb 8459 | -3/Quarantine | Found Terrabomb 8495 | -3/Quarantine | Discovered exit to Research (range 5) 8495 | -3/Quarantine | Entered Research 8495 | -2/Research | Evolved 2 slots: Propulsion x1, Utility x1 8523 | -2/Research | Discovered new exit (range 8) 8525 | -2/Research | Identified exit to Testing 8601 | -2/Research | Identified exit to Access 8603 | -2/Research | Entered Access 8603 | -1/Access | Evolved 2 slots: Utility x2 9048 | -1/Access | Used Terrabomb 9103 | -1/Access | Lost 3 parts (1p1n1u) 9183 | -1/Access | Repaired Cld. VTOL Module? 9287 | -1/Access | Lost 4 parts (1p3u) 9332 | -1/Access | Used Terrabomb 9332 | -1/Access | Spotted B-99 Colossus 9332 | -1/Access | Spotted B-99 Colossus 9372 | -1/Access | Core integrity fell below 50% 9376 | -1/Access | Emitted hypermatrix ping 9380 | -1/Access | Core integrity fell below 20% 9381 | -1/Access | Assembled emerged from beneath the floor 9391 | -1/Access | Destroyed by C-57 Dissector with Dual-blade Saw Last Messages --------------- 09376_ P-80 Master resets C-57 Dissector, system corruption cleaned. 09377_ P-80 Master resets P-80 Master, system corruption cleaned. 09377_ K-01 Serf collects debris. 09381_ Assembled emerge from beneath the floor. 09381_ as-70927 destroyed. 09381_ K-01 Serf collects debris. 09381_ S-43 Plague knocked back. 09381_ as-51278 destroyed. 09381_ S-43 Plague knocked back. 09381_ as-27943 knocked back. 09381_ as-60158 knocked back. 09381_ as-61573 destroyed. 09381_ as-60158 knocked back. 09381_ as-80496 knocked back. 09381_ as-27943 destroyed. 09382_ as-80496 destroyed. 09384_ Slug penetrates Sealed Heavy Doors. 09384_ Penetrated by Slug. 09384_ Slug penetrates Sealed Heavy Doors. 09384_ Penetrated by Slug. Map ----- +----------------------------------------------------+ | """ ####?????###+## "# | | " ??? # ! ## | | ?? """""""""""""############# | | ? " ###??????#= | | ? " """""""""""""""######"## | | ####+######???#"" "#" """" " | | #?????????????? # " " "??" " | | #????#??????????# """ "??" """""" " | | +?? #??????????# "??" "????" " | | # #??????????# "??" "????" " | | + #????? ?# "??" "????" " | | ######???? # "??" "????" " | | +###???????? #;;;;;;; "??" """""" " | | ????????? ; ; "??" """ | | """??????? ; ; """" s % """ | | """ ????? ; ;;;;;;;;;;;""""""""""""" | | " #???? ; "" | | #???? [; "%% | | #???? ; " | | #???? ; c % | | ???? ; | | #???;;;;;;;;;;;;;;cc;;;;;; | | ? #??# ; ! ;;;;;;;;""""" | | ?????# ; ! ; p | | ?????# ; c ; " | | ###???????# ; @ ; ! " | | ??????????# ; %!] ; " | | ??????????# ; !! ; [[ """"" | | ???????????# ; !! ; [== """"# | | ???????????# ; ; [ t + | | ????????????# ; = ; ! """ | | ????????????# ; ; # " | | ????????????## ; ; #?# | | ?????????????# ; ; #?# | | ?????????????## ; ; #?# | | ################;;;;;;;;;;;;+;+;;;;;;#######+### | | """G""" | | """ """ g | | #;;############+##### | | #???????# | | #???????# | | #???????# | | ######### | | + " | | #########"" """ | | ##############+##???????#""" """ | | ######+#####?????????? ????????#"R " | | ## #?????????? ????????#""" | | ## #????????? ???????#"" | | ## ! #????????? ???????# / | +----------------------------------------------------+ Best States ------------- Heat Dissipation 72 Energy Generation 57 Energy Capacity 900 Matter Stores 300 Matter Capacity 300 Sight Range 22 Robot Scan Range 15 Terrain Scan Density 10 ECM Strength 2 Jamming Range 16 Power Amplification 50 Additional Mass Support 12 Armor Coverage 600 Utility Shielding 66 Evasion (%) 69 Recoil Reduction 3 Offensive Hacking 48 Defensive Hacking 12 Item Schematics ----------------- None Robot Schematics ------------------ None Fabricated ------------ Cld. VTOL Module | x1 | -7/Factory Cld. VTOL Module | x1 | -6/Factory Cld. VTOL Module | x1 | -6/Factory Cld. VTOL Module | x1 | -5/Factory Repaired ---------- Transmission Jammer | 10% | -7/Factory Cld. VTOL Module | 99% | -7/Factory | Broken Cld. VTOL Module | 23% | -6/Factory Cld. VTOL Module | 70% | -4/Factory Cld. VTOL Module | 11% | -1/Access Alien Tech Used ----------------- Core Reset Matrix Phase Armor Subatomic Replicator Terrabomb Achievements -------------- Alien Roots Denied? Prolific Hacker Speed Demon Supersonic Challenges ------------ None Game ------ Seed ChargeCarbideWarhead Manual? 0 Play Time 02:41:04 Cumulative 33.1 hours Start 2025.10.10 @ 16:22:47 End 2025.10.10 @ 19:13:15 Sessions 1 Manual Loads 0 Difficulty Rogue Special Mode None Game No. 84 Rogue 77 Adventurer 7 Explorer 0 Win Type - Total 0 Types 0/0/0/0/0/0/0/0/0/0 Lore% 8 Gallery% 29 Achievement% 29 Wizard Run 0 Options --------- Layout 0 ASCII 0 Keyboard 1 Movement Vi Keybinds 0 Fullscreen 1 Font 18/SmallcapsGlow Map View 112x50 Zoom Use 0% Tactical HUD 1 Map Filters NONE Filters NONE Steam X RUN: d0817a35-45ab-47eb-9ed1-a299d03dfd61